bitfinex/quotes_BTCUSD_20250716
["timestamp","ask_amount","ask_price","bid_price","bid_amount"]
[1752681902252,0.003,118870.0,118860.0,0.55508578]
[1752681902454,0.003,118870.0,118860.0,1.01919158]
[1752681903402,0.003,118870.0,118860.0,0.95184017]
[1752681903601,0.003,118870.0,118860.0,0.34813437]
[1752681903798,0.003,118870.0,118860.0,0.48773437]
[1752681904005,0.02923679,118870.0,118860.0,0.49373437]
[1752681904436,0.01241205,118870.0,118860.0,0.49373437]
[1752681904900,0.02082424,118870.0,118860.0,0.49373437]
[1752681905041,0.01241205,118870.0,118860.0,0.48532161]
[1752681905245,0.004,118870.0,118860.0,0.94942741]
[1752681905485,0.01241198,118870.0,118860.0,0.95784031]
[1752681905719,0.20589972,118870.0,118860.0,0.76433608]
[1752681905940,0.01241205,118870.0,118860.0,0.94101437]
[1752681906142,0.01241205,118870.0,118860.0,0.94942741]
[1752681906345,0.0292365,118870.0,118860.0,0.96625307]
[1752681906555,0.03764898,118870.0,118860.0,0.96625307]
[1752681906766,0.0292365,118870.0,118860.0,0.96625307]
[1752681906981,0.0376489,118870.0,118860.0,0.96625307]
[1752681907421,0.02082417,118870.0,118860.0,0.96625307]
[1752681908053,0.01241198,118870.0,118860.0,0.96625307]
[1752681908719,0.03764883,118870.0,118860.0,0.96625307]
[1752681908931,0.02923643,118870.0,118860.0,0.96625307]
[1752681909145,0.20590001,118870.0,118860.0,0.30856353]
[1752681909361,0.19748803,118870.0,118860.0,0.47682871]
[1752681909568,0.18907591,118870.0,118860.0,0.30015028]
[1752681909790,0.19748796,118870.0,118860.0,0.94934755]
[1752681910009,0.01241191,118870.0,118860.0,0.95776052]
[1752681910200,0.20589987,118870.0,118860.0,0.95776052]
[1752681910428,0.20589987,118870.0,118860.0,0.97458611]
[1752681910429,0.03764834,118870.0,118860.0,0.97458611]
[1752681910634,0.03764834,118870.0,118860.0,1.31458611]
[1752681910635,0.01241205,118870.0,118860.0,1.31458611]
[1752681910742,0.01241198,118870.0,118860.0,1.31458611]
[1752681911131,0.004,118870.0,118860.0,2.90256252]
[1752681911534,0.004,118870.0,118860.0,5.57102552]
[1752681911735,0.004,118870.0,118860.0,4.83205052]
[1752681911980,0.003,118890.0,118880.0,0.59597154]
[1752681912156,0.003,118890.0,118880.0,1.48694762]
[1752681912584,0.003,118890.0,118880.0,4.82304241]
[1752681912787,0.003,118890.0,118880.0,4.70904026]
[1752681912993,0.003,118910.0,118900.0,1.52585059]
[1752681913183,0.00315106,118910.0,118900.0,1.61059507]
[1752681913542,0.00315106,118910.0,118900.0,1.61363507]
[1752681913746,0.00315106,118910.0,118900.0,1.63827586]
[1752681915105,0.00315106,118910.0,118900.0,1.64127586]
[1752681915311,0.00315106,118910.0,118900.0,3.80434366]
[1752681915716,0.00315106,118910.0,118900.0,3.28334166]
[1752681915916,0.00315106,118910.0,118900.0,2.45229566]
[1752681916331,0.00315106,118910.0,118900.0,1.74871886]
[1752681917169,0.003,118930.0,118920.0,0.19340646]
[1752681917419,0.003,118930.0,118920.0,5.81868553]
[1752681917633,0.003,118950.0,118940.0,0.59557393]
[1752681917841,0.00315128,118950.0,118940.0,1.28459001]
[1752681918245,0.00315128,118950.0,118940.0,1.28763001]
[1752681918656,0.00315128,118950.0,118940.0,2.62385101]
[1752681918898,0.00315128,118950.0,118940.0,2.13290001]
[1752681919102,0.00315128,118950.0,118940.0,1.48947001]
[1752681919306,0.00315128,118950.0,118940.0,1.63334401]
[1752681919484,0.00315128,118950.0,118940.0,1.48947001]
[1752681920044,0.00315128,118950.0,118940.0,1.49447001]
[1752681920245,0.00315128,118950.0,118940.0,0.89096421]
[1752681920631,0.00315128,118950.0,118940.0,1.03032421]
[1752681920765,0.00315128,118950.0,118940.0,1.49443001]
[1752681922829,0.00315128,118950.0,118940.0,1.03032421]
[1752681923041,0.00315128,118950.0,118940.0,1.49443001]
[1752681923680,0.00315128,118950.0,118940.0,2.78149381]
[1752681923909,0.00315128,118950.0,118940.0,2.07180901]
[1752681924127,0.00315128,118950.0,118940.0,0.89096421]
[1752681924353,0.19650911,118950.0,118940.0,0.173152]
[1752681924582,0.19104265,118950.0,118940.0,0.14432]
[1752681924766,0.19104265,118950.0,118940.0,0.14428]
[1752681925029,0.19104265,118950.0,118940.0,0.005]
[1752681925240,0.65514845,118950.0,118940.0,0.14428]
[1752681925454,0.19104265,118950.0,118940.0,0.14428]
[1752681925882,0.22254265,118950.0,118940.0,0.14428]
[1752681926558,0.19104265,118950.0,118940.0,0.14428]
[1752681926768,0.19104265,118950.0,118940.0,0.13928]
[1752681927228,0.19104265,118950.0,118940.0,0.31783952]
[1752681927443,0.18810265,118950.0,118940.0,0.13928]
[1752681927671,0.18810265,118950.0,118940.0,0.14028]
[1752681927886,0.19104265,118950.0,118940.0,0.14028]
[1752681928319,0.18810265,118950.0,118940.0,0.14028]
[1752681929349,0.19104265,118950.0,118940.0,0.001]
[1752681929797,0.19104265,118950.0,118940.0,0.14024]
[1752681930907,0.18810265,118950.0,118940.0,0.14024]
[1752681931114,0.17969597,118950.0,118940.0,0.14024]
[1752681931553,0.18263597,118950.0,118940.0,0.14024]
[1752681932438,0.18263597,118950.0,118940.0,0.001]
[1752681932667,0.7797929,118950.0,118940.0,0.001]
[1752681932888,0.8109929,118950.0,118940.0,0.001]
[1752681933347,1.1509929,118950.0,118940.0,0.001]
[1752681933583,0.18499781,118920.0,118910.0,0.06735141]
[1752681933819,0.18499781,118920.0,118910.0,0.20655141]
[1752681934073,0.65204361,118920.0,118910.0,0.20655141]
[1752681934298,0.17660401,118910.0,118900.0,0.02764079]
[1752681934533,0.17660401,118910.0,118900.0,0.16684079]
[1752681934811,0.17954401,118910.0,118900.0,0.02764079]
[1752681935046,0.17954401,118910.0,118900.0,0.16684079]
[1752681935525,0.29825429,118910.0,118900.0,0.1422]
[1752681936247,0.26505429,118910.0,118900.0,0.1422]
[1752681937189,0.18501351,118910.0,118900.0,0.1432]
[1752681937425,0.18501351,118910.0,118900.0,0.1422]
[1752681938075,0.18601351,118910.0,118900.0,0.1422]
[1752681938758,0.18601358,118910.0,118900.0,0.21259141]
[1752681938980,0.18895358,118910.0,118900.0,0.003]
[1752681939212,0.65305938,118910.0,118900.0,0.1422]
[1752681939653,0.18895358,118910.0,118900.0,0.1422]
[1752681940328,0.75311051,118910.0,118900.0,0.003]
[1752681940569,0.81471051,118910.0,118900.0,0.003]
[1752681940789,1.29387051,118910.0,118900.0,1e-08]
[1752681941445,1.37387051,118910.0,118900.0,1e-08]
[1752681941877,1.37287051,118910.0,118900.0,1e-08]
[1752681942628,1.23371051,118910.0,118900.0,1e-08]
[1752681942871,0.84716471,118910.0,118900.0,1e-08]
[1752681943099,0.71200471,118910.0,118900.0,1e-08]
[1752681944028,1.17611051,118910.0,118900.0,1e-08]
[1752681945405,0.37200471,118910.0,118900.0,0.06735142]
[1752681945633,0.26901358,118910.0,118900.0,0.06735142]
[1752681948150,0.26901358,118910.0,118900.0,0.07054142]
[1752681948367,0.26901358,118910.0,118900.0,0.13424142]
[1752681948587,0.004,118910.0,118900.0,0.79178621]
[1752681948807,0.004,118910.0,118900.0,0.87729649]
[1752681949284,0.004,118910.0,118900.0,1.21729649]
[1752681949510,0.004,118910.0,118900.0,1.68140229]
[1752681949732,0.004,118910.0,118900.0,1.21729649]
[1752681949955,0.01681681,118920.0,118910.0,0.59752273]
[1752681950178,0.03363405,118920.0,118910.0,1.28625881]
[1752681950390,0.20181483,118920.0,118910.0,0.81693379]
[1752681950601,0.04204349,118920.0,118910.0,0.82534308]
[1752681950833,0.04204349,118920.0,118910.0,0.8337523]
[1752681951248,0.01681625,118930.0,118920.0,0.59750632]
[1752681951483,0.18498239,118930.0,118920.0,0.59228795]
[1752681951701,0.18498239,118930.0,118920.0,0.58387915]
[1752681952148,0.18498239,118930.0,118920.0,0.40729]
[1752681952362,0.18498239,118930.0,118920.0,0.34]
[1752681953277,0.18798239,118930.0,118920.0,0.34]
[1752681953735,0.18501365,118910.0,118900.0,0.47294142]
[1752681953962,0.18501365,118910.0,118900.0,0.51347001]
[1752681954436,0.18501365,118910.0,118900.0,0.51028001]
[1752681955427,0.18501365,118910.0,118900.0,0.72008893]
[1752681955881,0.18501365,118910.0,118900.0,0.581009]
[1752681956122,0.18501365,118910.0,118900.0,0.72849935]
[1752681956362,0.18501365,118910.0,118900.0,0.59882956]
[1752681956599,0.00840929,118910.0,118900.0,1.21879543]
[1752681956824,0.20183202,118910.0,118900.0,1.28614698]
[1752681957279,0.20183202,118910.0,118900.0,1.28614656]
[1752681957506,0.01681837,118910.0,118900.0,1.28614614]
[1752681957734,0.0168183,118910.0,118900.0,1.28614614]
[1752681957988,0.02522766,118910.0,118900.0,1.37165642]
[1752681958213,0.03363724,118910.0,118900.0,1.37165642]
[1752681959152,0.03363716,118910.0,118900.0,1.37165642]
[1752681959377,0.02522759,118910.0,118900.0,1.37165642]
[1752681959603,0.03363681,118910.0,118900.0,1.37165642]
[1752681959824,0.00840908,118910.0,118900.0,1.346426]
[1752681960060,0.16816614,118930.0,118920.0,0.0618]
[1752681960301,0.16816614,118930.0,118920.0,0.37217028]
[1752681960531,0.16816614,118930.0,118920.0,0.38057929]
[1752681960757,0.16816614,118930.0,118920.0,0.38898809]
[1752681960976,0.16816614,118930.0,118920.0,0.38057929]
[1752681961425,0.16816614,118930.0,118920.0,0.38898823]
[1752681961665,0.17658915,118920.0,118910.0,0.34]
[1752681961977,0.17658915,118920.0,118910.0,0.479]
[1752681962423,0.18501351,118910.0,118900.0,1e-08]
[1752681962656,0.18795351,118910.0,118900.0,0.13896001]
[1752681962882,0.18795351,118910.0,118900.0,0.332399]
[1752681962883,0.00840929,118910.0,118900.0,0.332399]
[1752681963110,0.1850133,118910.0,118900.0,0.20635001]
[1752681963332,0.17660401,118910.0,118900.0,0.20635001]
[1752681964010,0.17660401,118910.0,118900.0,0.20618001]
[1752681964908,0.03363766,118910.0,118900.0,0.399619]
[1752681965133,0.20183288,118910.0,118900.0,0.38279893]
[1752681965346,0.20183288,118910.0,118900.0,0.39120921]
[1752681965559,0.20183288,118910.0,118900.0,0.39961935]
[1752681965998,0.01681908,118910.0,118900.0,0.40802928]
[1752681966213,0.02522823,118910.0,118900.0,0.95864536]
[1752681966444,0.02522647,118920.0,118910.0,0.19342294]
[1752681966665,0.003,118930.0,118920.0,0.18499781]
[1752681966878,0.18798239,118930.0,118920.0,1.2052222]
[1752681967109,0.2047985,118930.0,118920.0,1.19681361]
[1752681967324,0.19639069,118930.0,118920.0,1.18840495]
[1752681967536,0.17957444,118930.0,118920.0,1.17999608]
[1752681967758,0.17957444,118930.0,118920.0,1.18840509]
[1752681967973,0.17957444,118930.0,118920.0,0.72429929]
[1752681968194,0.17957444,118930.0,118920.0,0.54771]
[1752681968481,0.17116614,118930.0,118920.0,0.54771]
[1752681968932,0.17116614,118930.0,118920.0,0.72429929]
[1752681969143,0.17116614,118930.0,118920.0,0.73270809]
[1752681969355,0.17416614,118930.0,118920.0,0.55611901]
[1752681969568,0.17416614,118930.0,118920.0,0.72429929]
[1752681970609,0.17416614,118930.0,118920.0,0.54767]
[1752681970837,0.17416614,118930.0,118920.0,0.34]
[1752681971062,0.17416614,118930.0,118900.0,0.09034589]
[1752681971063,0.19342294,118910.0,118900.0,0.09034589]
[1752681971288,0.18501365,118910.0,118900.0,0.36555589]
[1752681971534,0.18501365,118910.0,118900.0,0.50443589]
[1752681971993,0.02522844,118910.0,118900.0,0.70106481]
[1752681972214,0.1934228,118910.0,118900.0,0.76616481]
[1752681972661,0.1934228,118910.0,118900.0,0.75775481]
[1752681972888,0.17410614,118930.0,118910.0,0.01681894]
[1752681973126,0.19340675,118920.0,118910.0,0.70899981]
[1752681973350,0.02822441,118930.0,118920.0,0.25850668]
[1752681973598,0.19639055,118930.0,118920.0,0.71420389]
[1752681973817,0.19639055,118930.0,118920.0,0.71740389]
[1752681974041,0.19639055,118930.0,118920.0,0.5324058]
[1752681974042,0.18998253,118930.0,118920.0,0.5324058]
[1752681974268,0.18998253,118930.0,118920.0,0.24488915]
[1752681974489,0.17957444,118930.0,118920.0,0.0683]
[1752681974696,0.18257444,118930.0,118920.0,0.23648028]
[1752681975144,0.18257444,118930.0,118920.0,0.24488929]
[1752681975388,0.17658922,118920.0,118910.0,0.34747741]
[1752681975624,0.17658922,118920.0,118910.0,0.34]
[1752681975840,0.17963922,118920.0,118910.0,0.47884]
[1752681976588,0.17658922,118920.0,118910.0,0.48630136]
[1752681976797,0.02622612,118920.0,118910.0,1.21042989]
[1752681977026,0.02622576,118920.0,118910.0,1.29594017]
[1752681977474,0.00940851,118920.0,118910.0,1.29594017]
[1752681977968,0.20281512,118920.0,118910.0,1.28753095]
[1752681978211,0.03463484,118920.0,118910.0,1.30434953]
[1752681978453,0.03463484,118920.0,118910.0,1.16550953]
[1752681978690,0.03463484,118920.0,118910.0,1.30430953]
[1752681978691,0.02622576,118920.0,118910.0,1.30430953]
[1752681978906,0.00940844,118920.0,118910.0,1.30430953]
[1752681979125,0.001,118920.0,118910.0,1.30430953]
[1752681979343,0.001,118920.0,118910.0,1.16550953]
[1752681979562,0.00940851,118920.0,118910.0,1.16550953]
[1752681979779,0.001,118920.0,118910.0,1.30426953]
[1752681980639,0.00940837,118920.0,118910.0,1.30426953]
[1752681980863,0.001,118920.0,118910.0,1.30426953]
[1752681981144,0.00940844,118920.0,118910.0,1.30426953]
[1752681981354,0.001,118920.0,118910.0,1.30426953]
[1752681981571,0.0178171,118920.0,118910.0,1.30426953]
[1752681981820,0.20281505,118920.0,118910.0,0.49957164]
[1752681982075,0.18904795,118920.0,118910.0,0.13876]
[1752681982290,0.18504449,118890.0,118880.0,0.11299052]
[1752681982555,0.18504449,118890.0,118880.0,0.25175052]
[1752681982789,0.18504449,118890.0,118880.0,0.25920818]
[1752681983740,0.18504449,118890.0,118880.0,0.26762002]
[1752681983966,0.18504449,118890.0,118880.0,0.26540818]
[1752681984641,0.18504449,118890.0,118880.0,0.47505689]
[1752681984881,0.17663371,118890.0,118880.0,0.47505689]
[1752681985095,0.17663371,118890.0,118880.0,0.50625689]
[1752681985321,0.01682049,118900.0,118890.0,0.20963378]
[1752681985549,0.21025969,118900.0,118890.0,0.81888227]
[1752681985836,0.00840979,118900.0,118890.0,0.81047079]
[1752681986071,0.00840979,118900.0,118890.0,1.15047079]
[1752681986072,0.03364,118900.0,118890.0,1.15047079]
[1752681986519,0.03355338,118900.0,118890.0,1.15047079]
[1752681986739,0.03355338,118900.0,118890.0,0.95701608]
[1752681986740,0.20176195,118900.0,118890.0,0.95701608]
[1752681986948,0.18502892,118900.0,118890.0,0.67154406]
[1752681987162,0.01682035,118900.0,118890.0,0.68836569]
[1752681987386,0.01682035,118900.0,118890.0,0.69677633]
[1752681988042,0.19343927,118900.0,118890.0,0.68836569]
[1752681988252,0.1850292,118900.0,118890.0,0.663133]
[1752681988468,0.1850292,118900.0,118890.0,0.67995491]
[1752681988672,0.01682063,118900.0,118890.0,0.68836569]
[1752681988909,0.01681986,118900.0,118890.0,1.16088213]
[1752681989364,0.19342266,118910.0,118900.0,0.24762892]
[1752681989584,0.20183231,118910.0,118900.0,0.85041486]
[1752681989775,0.20183231,118910.0,118900.0,0.75473913]
[1752681989776,0.02522823,118910.0,118900.0,0.75473913]
[1752681990020,0.20183238,118910.0,118900.0,0.84024941]
[1752681990245,0.02522823,118910.0,118900.0,1.30435521]
[1752681990510,0.03363788,118910.0,118900.0,1.30435521]
[1752681990722,0.00840922,118910.0,118900.0,1.30435521]
[1752681990943,0.0168183,118910.0,118900.0,1.28753444]
[1752681991172,0.03363716,118910.0,118900.0,1.27912458]
[1752681991449,8.479e-05,118920.0,118910.0,0.60383216]
[1752681991717,8.479e-05,118920.0,118910.0,2.93471765]
[1752681991940,8.479e-05,118920.0,118910.0,2.25023565]
[1752681992163,8.479e-05,118920.0,118910.0,1.38013124]
[1752681992385,0.19349104,118920.0,118910.0,1.27850988]
[1752681992605,0.1850826,118920.0,118910.0,0.81436408]
[1752681992824,0.01690232,118920.0,118910.0,0.83118302]
[1752681993049,0.01690189,118920.0,118910.0,1.30369804]
[1752681993300,8.479e-05,118920.0,118910.0,1.30369804]
[1752681993742,8.479e-05,118920.0,118910.0,1.30869804]
[1752681994020,8.479e-05,118920.0,118910.0,1.17005804]
[1752681994240,8.479e-05,118920.0,118910.0,1.30869804]
[1752681995373,8.479e-05,118920.0,118910.0,2.27151204]
[1752681995592,8.479e-05,118920.0,118910.0,1.88718604]
[1752681996255,3.92e-06,118920.0,118910.0,1.08328424]
[1752681996480,3.92e-06,118920.0,118910.0,1.54739004]
[1752681997588,3.92e-06,118920.0,118910.0,1.17005804]
[1752681997884,0.01682116,118920.0,118910.0,0.84455224]
[1752681998097,3.92e-06,118920.0,118910.0,0.84455224]
[1752681998317,3.92e-06,118920.0,118910.0,1.17005804]
[1752681998719,3.92e-06,118920.0,118910.0,1.30861804]
[1752681999229,3.92e-06,118920.0,118910.0,1.47076504]
[1752682000594,3.92e-06,118920.0,118910.0,6.25670088]
[1752682000847,0.003,118930.0,118910.0,6.22306257]
[1752682001066,0.003,118930.0,118920.0,6.42233704]
[1752682001288,1e-08,118930.0,118920.0,6.42023479]
[1752682002404,0.003,118950.0,118940.0,0.72097973]
[1752682002638,0.003,118950.0,118940.0,2.98421901]
[1752682002866,0.003,118950.0,118940.0,2.98741901]
[1752682003104,0.003,118950.0,118940.0,2.92658101]
[1752682003783,0.003,118950.0,118940.0,2.82142901]
[1752682004212,0.01140639,118950.0,118940.0,1.14993001]
[1752682004456,0.003,118950.0,118940.0,1.26933001]
[1752682004688,0.02821939,118950.0,118940.0,1.14993001]
[1752682004934,0.1879513,118950.0,118940.0,0.20176]
[1752682005165,0.1879513,118950.0,118940.0,0.5167996]
[1752682005386,0.1879513,118950.0,118940.0,0.39513457]
[1752682005606,0.17954462,118950.0,118940.0,0.36502671]
[1752682005824,0.17954462,118950.0,118940.0,0.54158631]
[1752682006040,0.17954462,118950.0,118940.0,0.41151383]
[1752682006267,0.17954462,118950.0,118940.0,0.54995383]
[1752682006502,0.02081329,118950.0,118940.0,1.02246694]
[1752682006711,0.02921954,118950.0,118940.0,1.03087404]
[1752682006942,0.02081286,118950.0,118940.0,1.03087404]
[1752682007162,0.004,118950.0,118940.0,1.11938432]
[1752682007380,0.004,118950.0,118940.0,1.18238432]
[1752682007604,0.02081264,118950.0,118940.0,1.18238432]
[1752682007821,0.03762578,118950.0,118940.0,1.18238432]
[1752682008048,0.004,118950.0,118940.0,1.04394432]
[1752682008262,0.004,118950.0,118940.0,1.18238432]
[1752682009141,0.004,118950.0,118940.0,2.98976032]
[1752682009391,0.004,118950.0,118940.0,3.45386612]
[1752682009613,0.004,118950.0,118940.0,2.98976032]
[1752682009841,0.004,118950.0,118940.0,4.62803717]
[1752682010044,0.004,118950.0,118940.0,4.05909517]
[1752682010747,0.004,118950.0,118940.0,1.53692517]
[1752682010967,0.004,118950.0,118940.0,4.16144017]
[1752682011199,0.004,118950.0,118940.0,4.67554596]
[1752682011396,0.00292114,118970.0,118960.0,1.06204723]
[1752682011646,0.00292114,118970.0,118960.0,3.51427251]
[1752682011647,0.00342567,118970.0,118960.0,3.51427251]
[1752682012140,0.00342567,118970.0,118960.0,3.32227151]
[1752682012366,0.00342567,118970.0,118960.0,1.45850451]
[1752682012597,0.01183051,118970.0,118960.0,1.45850451]
[1752682012823,0.00342567,118970.0,118960.0,1.45850451]
[1752682013268,0.00342567,118970.0,118960.0,1.25091351]
[1752682013512,0.00342567,118970.0,118960.0,1.38927351]
[1752682013956,0.01183051,118970.0,118960.0,1.39641986]
[1752682014180,0.00342567,118970.0,118960.0,1.39641986]
[1752682014469,0.01183051,118970.0,118960.0,1.39641986]
[1752682014712,0.2051559,118970.0,118960.0,0.7643582]
[1752682014944,0.02023556,118970.0,118960.0,1.23986969]
[1752682015145,0.02864068,118970.0,118960.0,1.23986969]
[1752682015360,0.00342567,118970.0,118960.0,1.30486969]
[1752682016226,0.00342567,118970.0,118960.0,2.27019269]
[1752682017087,0.00342567,118970.0,118960.0,2.28473354]
[1752682017311,0.00342567,118970.0,118960.0,3.44576554]
[1752682017531,0.00342567,118970.0,118960.0,3.44572554]
[1752682017745,0.00342567,118970.0,118960.0,3.25297554]
[1752682017966,0.00342567,118970.0,118960.0,2.96011254]
[1752682018162,0.00342567,118970.0,118960.0,3.12465753]
[1752682019291,0.003,118990.0,118980.0,1.05111473]
[1752682019559,0.00315123,118990.0,118980.0,4.13905801]
[1752682019777,0.00315123,118990.0,118980.0,3.77465701]
[1752682020015,0.00315123,118990.0,118980.0,3.78919786]
[1752682020236,0.0004,119000.0,118990.0,0.02521134]
[1752682020463,0.0004,119000.0,118990.0,5.65661857]
[1752682020687,0.0004,119000.0,118990.0,5.67064861]
[1752682020907,0.0004,119000.0,118990.0,4.78755529]
[1752682021342,0.0004,119000.0,118990.0,4.99522534]
[1752682021560,0.0114006,119030.0,119020.0,0.53324396]
[1752682021789,0.219978,119030.0,119020.0,0.34]
[1752682022046,0.18485791,119010.0,119000.0,0.71815051]
[1752682022270,0.1680531,119010.0,119000.0,0.34]
[1752682022505,0.17647058,119000.0,118990.0,0.15624773]
[1752682022724,0.21199058,119000.0,118990.0,0.15624773]
[1752682022939,0.21199058,119000.0,118990.0,0.29444773]
[1752682023157,0.23389058,119000.0,118990.0,0.29444773]
[1752682023612,0.21199058,119000.0,118990.0,0.29444773]
[1752682024084,0.69799638,119000.0,118990.0,0.15624773]
[1752682024297,0.69799638,119000.0,118990.0,0.29444773]
[1752682024524,0.23389058,119000.0,118990.0,0.29444773]
[1752682024972,1.12350666,119000.0,118990.0,0.15624773]
[1752682025204,1.12350666,119000.0,118990.0,0.29440773]
[1752682027458,1.12850666,119000.0,118990.0,0.29440773]
[1752682027687,1.12850666,119000.0,118990.0,0.15624773]
[1752682028135,0.69279107,118990.0,118980.0,0.14116]
[1752682028381,0.23772005,118970.0,118960.0,1e-08]
[1752682028591,0.94003698,118970.0,118960.0,1e-08]
[1752682028824,1.28315698,118970.0,118960.0,1e-08]
[1752682029052,1.28315698,118970.0,118940.0,0.003]
[1752682029053,0.71639781,118950.0,118940.0,0.003]
[1752682029288,0.80190809,118950.0,118940.0,1e-08]
[1752682029546,0.80502809,118950.0,118940.0,1e-08]
[1752682029832,0.80502809,118950.0,118920.0,0.07035141]
[1752682029833,0.2389231,118930.0,118920.0,0.07035141]
[1752682030075,0.78853918,118930.0,118920.0,0.07050264]
[1752682030309,0.79165918,118930.0,118920.0,0.07050264]
[1752682031016,0.31301253,118930.0,118920.0,0.07050264]
[1752682031250,0.18810225,118930.0,118920.0,0.07050264]
[1752682031482,0.58565422,118910.0,118900.0,1e-08]
[1752682031712,1.21873861,118910.0,118900.0,8.48e-05]
[1752682031939,0.24398534,118890.0,118880.0,0.003]
[1752682032158,0.96518973,118890.0,118880.0,0.00315106]
[1752682032637,0.96830973,118890.0,118880.0,0.00315106]
[1752682032863,0.83018973,118890.0,118880.0,0.00315106]
[1752682033089,0.18816449,118890.0,118880.0,0.00315106]
[1752682033308,0.18504449,118890.0,118880.0,0.00315106]
[1752682033992,0.18816449,118890.0,118880.0,0.00315106]
[1752682034715,0.85675916,118890.0,118880.0,0.00315106]
[1752682035184,1.05626001,118890.0,118880.0,0.00315106]
[1752682035865,0.41179477,118890.0,118880.0,0.00315106]
[1752682036092,0.41146031,118890.0,118880.0,0.00315106]
[1752682036328,1.05488555,118890.0,118880.0,0.00315106]
[1752682036571,1.05788555,118890.0,118880.0,0.00315106]
[1752682037267,0.27634031,118890.0,118880.0,0.00315106]
[1752682037757,0.19083003,118890.0,118880.0,0.00315106]
[1752682038207,0.27634031,118890.0,118880.0,0.00315106]
[1752682038667,0.19083003,118890.0,118880.0,0.00315106]
[1752682038907,0.23057562,118870.0,118860.0,0.003]
[1752682039152,1.25371114,118870.0,118860.0,0.003]
[1752682039396,1.25371114,118870.0,118840.0,0.003]
[1752682039397,0.18510677,118850.0,118840.0,0.003]
[1752682039634,0.18510677,118850.0,118840.0,1e-08]
[1752682039635,1.05256229,118850.0,118840.0,1e-08]
[1752682039865,1.05256229,118850.0,118820.0,0.0032]
[1752682039866,0.18513792,118830.0,118820.0,0.0032]
[1752682040117,0.30848905,118830.0,118820.0,0.0032]
[1752682040570,0.87139344,118830.0,118820.0,0.0032]
[1752682040801,0.87139344,118830.0,118820.0,0.00370467]
[1752682041033,0.91769344,118830.0,118820.0,0.00370467]
[1752682041259,1.05581344,118830.0,118820.0,0.00370467]
[1752682042663,1.00951344,118830.0,118820.0,0.00370467]
[1752682042890,0.2737682,118830.0,118820.0,0.00370467]
[1752682043129,0.2757682,118830.0,118820.0,0.00370467]
[1752682043588,0.1787229,118830.0,118820.0,0.00370467]
[1752682043828,0.1787229,118830.0,118820.0,0.14182467]
[1752682044055,0.1767229,118830.0,118820.0,0.14182467]
[1752682044290,0.1798429,118830.0,118820.0,0.00370467]
[1752682044760,0.86297842,118830.0,118820.0,0.00370467]
[1752682045740,0.27989403,118830.0,118820.0,0.00370467]
[1752682045961,0.88597842,118830.0,118820.0,0.00370467]
[1752682046183,0.90927842,118830.0,118820.0,0.00370467]
[1752682046640,0.41805403,118830.0,118820.0,0.00370467]
[1752682046887,1.00113842,118830.0,118820.0,0.00370467]
[1752682047110,0.41805403,118830.0,118820.0,0.00370467]
[1752682047342,1.00113842,118830.0,118820.0,0.00370467]
[1752682048231,0.1798429,118830.0,118820.0,0.00370467]
[1752682048689,0.84843757,118830.0,118820.0,0.00370467]
[1752682048916,0.85043757,118830.0,118820.0,0.00370467]
[1752682049594,0.86497842,118830.0,118820.0,0.00370467]
[1752682050308,0.26735318,118830.0,118820.0,0.00370467]
[1752682050546,0.19555295,118830.0,118820.0,0.05238467]
[1752682050840,0.20396819,118830.0,118820.0,0.23753846]
[1752682051100,0.18713821,118830.0,118820.0,0.05238467]
[1752682051365,0.18713821,118830.0,118820.0,0.04920467]
[1752682051664,0.18713821,118830.0,118820.0,0.14182467]
[1752682051888,0.18713821,118830.0,118820.0,0.18682467]
[1752682052559,0.17672304,118830.0,118820.0,0.05188467]
[1752682052789,0.17672304,118830.0,118820.0,0.14182467]
[1752682053021,0.84843771,118830.0,118820.0,0.14382467]
[1752682053261,0.84843771,118830.0,118820.0,1e-08]
[1752682054398,0.17672304,118830.0,118820.0,1e-08]
[1752682054633,0.17673777,118820.0,118810.0,0.20885141]
[1752682054852,0.17673777,118820.0,118810.0,0.25495141]
[1752682055294,0.18513807,118830.0,118820.0,0.17673792]
[1752682055519,0.18513807,118830.0,118820.0,0.18833394]
[1752682055741,0.18513764,118830.0,118820.0,0.20516533]
[1752682055968,0.025245,118830.0,118820.0,0.25126533]
[1752682056192,0.02524514,118830.0,118820.0,0.25126533]
[1752682056415,0.20196818,118830.0,118820.0,0.24284974]
[1752682056641,0.1935533,118830.0,118820.0,0.24284974]
[1752682056865,0.1935533,118830.0,118820.0,0.24284988]
[1752682057330,0.01682892,118840.0,118830.0,0.57955345]
[1752682057555,0.19353659,118840.0,118830.0,0.80314373]
[1752682057800,0.18512263,118840.0,118830.0,0.47151028]
[1752682058070,0.18512263,118840.0,118810.0,0.0002]
[1752682058071,0.1851535,118820.0,118810.0,0.0002]
[1752682058304,0.86828902,118820.0,118810.0,0.0002]
[1752682058530,0.41186378,118820.0,118810.0,0.0002]
[1752682058764,0.99494817,118820.0,118810.0,0.0002]
[1752682059227,1.00948902,118820.0,118810.0,0.0002]
[1752682060161,0.27166378,118820.0,118810.0,0.0002]
[1752682060391,0.1861535,118820.0,118810.0,0.0002]
[1752682060652,0.27478378,118820.0,118810.0,0.0002]
[1752682060876,0.27166378,118820.0,118810.0,0.0002]
[1752682061095,0.41286378,118820.0,118810.0,0.0002]
[1752682061812,0.41186378,118820.0,118810.0,0.0002]
[1752682062042,0.27366378,118820.0,118810.0,0.0002]
[1752682062284,0.41174378,118820.0,118810.0,0.0002]
[1752682062967,0.41486378,118820.0,118810.0,0.0002]
[1752682063437,0.99794817,118820.0,118810.0,0.0002]
[1752682063669,1.01248902,118820.0,118810.0,0.0002]
[1752682064376,0.42940463,118820.0,118810.0,0.0002]
[1752682064596,1.01248902,118820.0,118810.0,0.0002]
[1752682065730,0.75985191,118800.0,118790.0,0.20075279]
[1752682065969,0.98340219,118800.0,118790.0,0.20090422]
[1752682066197,0.98648219,118800.0,118790.0,0.20090422]
[1752682066647,1.00102304,118800.0,118790.0,0.20090422]
[1752682068275,1.00102304,118800.0,118790.0,0.20290422]
[1752682068500,1.00102304,118800.0,118790.0,0.20090422]
[1752682069882,0.17676752,118800.0,118790.0,0.22828422]
[1752682070123,0.17676752,118800.0,118790.0,0.33676013]
[1752682070124,0.18518495,118800.0,118790.0,0.33676013]
[1752682070338,0.18518495,118800.0,118760.0,0.003]
[1752682070339,0.18523146,118770.0,118760.0,0.003]
[1752682070591,0.32327146,118770.0,118760.0,0.003]
[1752682070783,0.87144698,118770.0,118760.0,0.003]
[1752682071054,0.75991146,118760.0,118750.0,0.0002]
[1752682071299,0.87260174,118760.0,118750.0,0.00035146]
[1752682071525,0.91164259,118760.0,118750.0,0.00035146]
[1752682071756,1.04968259,118760.0,118750.0,0.00035146]
[1752682072456,1.04968259,118760.0,118750.0,0.00235146]